Cogmind - Beta 15 @@@ ROGUE MODE // 2025.07.22 @ 16:45:48 Player: shapeshifter Result: Self-destructed Performance ------------- Evolutions (2) 1000 Regions Visited (6) 1200 Robots Destroyed (58) 290 Value Destroyed (1694) 1694 Prototype IDs (25) 500 Alien Tech Used (0) 0 Bonus (300) 300 TOTAL SCORE: 4984 Bonus ------- Aligned with FarCom 300 Cogmind --------- Core Integrity 248/550 Matter 300/300 Energy 12/100 System Corruption 9% Temperature Cool (0) Movement Core (450) Ox8 Location -8/Materials Parts ------- > --- POWER (1) -------- (None) > --- PROPULSION (4) --- (None) > --- UTILITY (4) ------ Large Storage Unit Structural Scanner Improved Shield Generator > --- WEAPON (2) ------- (None) > --- INVENTORY (15) --- Light Nuclear Core Disposable Heat Sink Large Storage Unit High-capacity Battery (250) High-capacity Matter Pod (200) Improved Salvage Targeting Computer Army-in-a-Box (30/30) Peak State ------------ > --- POWER ------------ Light Nuclear Core > --- PROPULSION ------- Aluminum Leg Aluminum Leg Aluminum Leg Carbon-fiber Leg > --- UTILITY ---------- Large Storage Unit Structural Scanner Hardened Light Armor Plating Improved Shield Generator > --- WEAPON ----------- Particle Gun Beam Cannon > --- INVENTORY -------- Light Nuclear Core Disposable Heat Sink Large Storage Unit High-capacity Battery High-capacity Matter Pod Improved Salvage Targeting Computer Army-in-a-Box [Rating: 26] Favorites ----------- Power Ion Engine Engine Ion Engine Power Core Light Nuclear Core Propulsion Light Treads Treads Light Treads Leg Carbon-fiber Leg Wheel Wheel Utility Large Storage Unit Device Seismic Detector Storage Large Storage Unit Protection Hardened Light Armor Plating Weapon Beam Cannon Energy Gun Heavy EM Pulse Gun Energy Cannon Beam Cannon Ballistic Gun Assault Rifle Launcher Heavy Missile Launcher Special Weapon Mining Laser Build | -11 -10 -9 -9 -9 -8 -8 ------- Run | Yrd Mat Mat Min Exi Min Mat Slots Evolved 4 | . . 2 . . . 2 Power . | . . . . . . . Propulsion 2 | . . 2 . . . . Utility 2 | . . . . . . 2 Weapon . | . . . . . . . Parts Attached 47 | 7 11 13 2 . 2 12 Power 6 | 1 2 2 . . . 1 Engine 5 | 1 2 2 . . . . Core 1 | . . . . . . 1 Reactor . | . . . . . . . Propulsion 17 | 2 3 6 1 . 1 4 Treads 11 | 2 3 5 1 . . . Leg 5 | . . . . . 1 4 Wheel 1 | . . 1 . . . . Hover . | . . . . . . . Flight . | . . . . . . . Utility 11 | 2 3 . 1 . . 5 Device 6 | 1 1 . 1 . . 3 Storage 3 | 1 2 . . . . . Processor . | . . . . . . . Hackware . | . . . . . . . Protection 2 | . . . . . . 2 Artifact . | . . . . . . . Weapon 13 | 2 3 5 . . 1 2 Energy Gun 4 | . 1 2 . . . 1 Energy Cannon 2 | . . 2 . . . . Ballistic Gun 5 | 2 1 1 . . 1 . Ballistic Cannon . | . . . . . . . Launcher 1 | . . . . . . 1 Special Weapon 1 | . 1 . . . . . Impact Weapon . | . . . . . . . Slashing Weapon . | . . . . . . . Piercing Weapon . | . . . . . . . Special Melee Weapon . | . . . . . . . Unidentified Prototypes . | . . . . . . . Parts Lost 32 | . 2 11 . . 1 18 Power 5 | . 1 2 . . . 2 Propulsion 12 | . . 4 . . . 8 Utility 6 | . 1 1 . . . 4 Weapon 9 | . . 4 . . 1 4 Highest Loss Streak 8 | . 1 8 . . 1 8 To Critical Strikes . | . . . . . . . Average Backups 10 | 6 10 13 9 9 9 8 Power . | . . . . . . . Propulsion 1 | 3 4 2 . . . . Utility 7 | . 4 9 9 9 9 7 Weapon . | 1 1 2 . . . . Tool/Special . | . . . . . . . Unused Backups 23 | . 10 3 . . 2 8 Power 1 | . . . . . . 1 Propulsion 6 | . 5 . . . . 1 Utility 13 | . 2 3 . . 2 6 Weapon 3 | . 3 . . . . . Tool/Special . | . . . . . . . Average Slot Usage (%) 90 | . 99 89 85 88 87 85 Engine 10 | . 13 8 11 11 11 5 Treads 31 | . 28 40 32 33 33 18 Leg 1 | . . . . . . 10 Device 11 | . 13 9 11 11 11 8 Storage 11 | . 14 11 11 11 11 9 Protection 1 | . . . . . . 14 Energy Gun 2 | . 5 4 . . . . Energy Cannon 5 | . . 1 11 11 11 8 Ballistic Gun 9 | . 21 13 . . . 6 Special Weapon 4 | . . . 9 11 10 . Peak Build Rating 26 | 8 11 14 9 14 17 26 Average Rating 11 | 5 9 11 8 9 13 19 On Entrance 9 | . 8 11 6 9 14 17 Naked Turns . | . . . . . . . Heaviest Build 41 | 14 31 31 30 30 31 41 Greatest Support 80 | 40 40 80 60 60 60 60 Greatest Overweight (x) 10 | 1 . 1 . . . 10 Average Overweight (x) . | . . . . . . . Largest Inventory Capacity 15 | 8 15 15 15 15 15 15 Average Capacity 13 | 7 10 15 15 15 15 15 Most Carried 15 | 8 15 15 11 15 15 15 Average Carried 11 | 6 10 14 9 9 14 13 Final Capacity 15 | 8 15 15 15 15 15 15 Final Carried 15 | 8 15 12 9 15 14 12 Class Distribution -------------------- 88% | Mutant 11% | Scavenger-Mutant Dominant Class ---------------- Mutant | -10/Materials Mutant | -9/Materials Mutant | -9/Mines Mutant | -9/Exiles Mutant | -8/Mines Scavenger-Mutant | -8/Materials Resources | -11 -10 -9 -9 -9 -8 -8 ----------- Run | Yrd Mat Mat Min Exi Min Mat Matter Collected 1632 | 306 437 406 . 29 240 214 Remotely . | . . . . . . . Salvage Created 2200 | 84 720 924 . . 173 299 Parts 142 | 14 37 66 . . 6 19 Haulers Intercepted 2 | . 1 1 . . . . Recyclers Shooed 4 | 1 1 . . . 1 1 Parts Field Recycled . | . . . . . . . Retrieved Matter . | . . . . . . . Parts Self-Destructed . | . . . . . . . Prevented . | . . . . . . . Kills | -11 -10 -9 -9 -9 -8 -8 ------- Run | Yrd Mat Mat Min Exi Min Mat Combat Hostiles Destroyed 42 | . 15 18 . . 1 8 Guns 31 | . 15 15 . . . 1 Cannons 6 | . . 3 . . 1 2 AOE 5 | . . . . . . 5 Classes Destroyed 11 | 1 3 6 . . 1 . Worker 3 | . . 2 . . . 1 Builder 1 | . . 1 . . . . Tunneler 5 | 5 . . . . . . Hauler 2 | . 1 1 . . . . Recycler 3 | . . 1 . . 2 . Watcher 2 | . 1 1 . . . . Swarmer 3 | . . 3 . . . . Grunt 32 | . 15 10 . . . 7 Brawler 1 | . . 1 . . . . Sentry 4 | . . 4 . . . . Hunter 2 | . . . . . 1 1 Best Kill Streak 5 | 3 3 4 . . 2 5 Combat Bots Only 5 | . 2 3 . . 1 5 Max Kills in Single Turn 3 | 1 1 2 . . 1 3 Gunslinging . | . . . . . . . Exploded 3 | . . . . . . 3 Melee . | . . . . . . . Uniques/NPCs Destroyed . | . . . . . . . Combat | -11 -10 -9 -9 -9 -8 -8 -------- Run | Yrd Mat Mat Min Exi Min Mat Hostile Shots Fired 373 | . 75 174 . . 6 118 Missed 99 | . 21 47 . . 1 30 Hits 274 | . 54 127 . . 5 88 Projectile 274 | . 54 127 . . 5 88 Critical Strikes 6 | . 1 4 . . . 1 Damage Taken 4248 | . 669 1635 . . 78 1866 Core 704 | . 108 282 . . 12 302 Absorbed by Shields 88 | . . . . . . 88 Regen/Repaired (Parts) 118 | . 16 102 . . . . Core Remaining (%) 60 | 100 56 . . . 26 . Volleys Fired 200 | 11 66 80 . . 10 33 Largest 2 | 2 2 2 . . 1 2 Hottest 145 | 40 145 105 . . 60 125 Shots Fired 339 | 22 129 134 . . 10 44 Gun 274 | 22 124 113 . . . 15 Cannon 55 | . . 21 . . 10 24 Launcher 5 | . . . . . . 5 Special 5 | . 5 . . . . . Kinetic 226 | 22 104 87 . . . 13 Thermal 62 | . 5 21 . . 10 26 Explosive 5 | . . . . . . 5 Electromagnetic 46 | . 20 26 . . . . Robot Hit Streak 12 | 4 9 12 . . 6 7 Robot Miss Streak 6 | 2 5 6 . . 2 2 Penetration Max . | . . . . . . . Secondary Targets 5 | . 3 2 . . . . Max Gunslinging Chain 1 | . 1 1 . . . . Shots Hit Robots 206 | 11 73 84 . . 7 31 Core Hits 105 | 6 34 39 . . 4 22 Critical Kills 1 | . . 1 . . . . Critical Parts Destroyed . | . . . . . . . Critical Strikes 2 | . 1 1 . . . . Destroy 1 | . . 1 . . . . Corrupt 1 | . 1 . . . . . Melee Attacks . | . . . . . . . Impact . | . . . . . . . Slashing . | . . . . . . . Piercing . | . . . . . . . Sneak Attacks . | . . . . . . . Combat Hostiles . | . . . . . . . Follow-up Attacks . | . . . . . . . Damage Inflicted 3448 | 128 863 1401 . . 122 934 Guns 2185 | 128 863 1082 . . . 112 Cannons 698 | . . 260 . . 122 316 Explosions 565 | . . 59 . . . 506 Melee . | . . . . . . . Ramming . | . . . . . . . Kinetic 1778 | 128 751 787 . . . 112 Thermal 757 | . . 319 . . 122 316 Explosive 506 | . . . . . . 506 Electromagnetic 407 | . 112 295 . . . . Impact . | . . . . . . . Slashing . | . . . . . . . Piercing . | . . . . . . . Highest Corruption 9 | . 3 . . . . 9 Average Corruption 3 | . 2 . . . . 9 Corruption Purged . | . . . . . . . Corruption Blocked . | . . . . . . . Effects 15 | . 11 . . . . 4 Message Errors 2 | . 2 . . . . . Matter Fused 4 | . 3 . . . . 1 Energy Discharges 3 | . 2 . . . . 1 Parts Fused 1 | . . . . . . 1 Data Loss (minor) 4 | . 4 . . . . . Data Loss (major) 1 | . . . . . . 1 Overload Shots . | . . . . . . . Overflow Damage 28 | . . . . . . 28 Projectiles 12 | . . . . . . 12 Explosions 16 | . . . . . . 16 Melee . | . . . . . . . Knockbacks . | . . . . . . . Impact . | . . . . . . . Kinetic . | . . . . . . . Secondary . | . . . . . . . Self-Inflicted Damage 181 | . . 35 . . . 146 Shots 5 | . . 1 . . . 4 Rammed 3 | 2 1 . . . . . Targets Rammed 3 | 2 1 . . . . . Kicked . | . . . . . . . Crushed . | . . . . . . . Highest Temperature 396 | . 79 135 . . 56 396 Average Temperature 67 | . 24 40 . . 27 146 Received Heat Transfer 1809 | . 396 768 . . . 645 Effects 3 | . . . . . . 3 Shutdowns 1 | . . . . . . 1 Interference 2 | . . . . . . 2 Siege Activations . | . . . . . . . Martial Activations . | . . . . . . . Shielding Activations . | . . . . . . . Robots Disrupted . | . . . . . . . Combat Hostiles . | . . . . . . . Robots Corrupted . | . . . . . . . Combat Hostiles . | . . . . . . . Parts Fried . | . . . . . . . Impact Corruptions . | . . . . . . . Robots Melted . | . . . . . . . Combat Hostiles . | . . . . . . . Parts Melted 1 | . . 1 . . . . Heat Transferred 1580 | . . 655 . . 259 666 Parts Sabotaged . | . . . . . . . Parts Stolen . | . . . . . . . Parts Stripped . | . . . . . . . Power Chain Reactions 1 | . . 1 . . . . Alert | -11 -10 -9 -9 -9 -8 -8 ------- Run | Yrd Mat Mat Min Exi Min Mat Maximum Alert Level 1 | . . 1 . . . . Low Security (%) 98 | 100 100 91 100 . 100 100 Level 1 1 | . . 8 . . . . Level 2 . | . . . . . . . Level 3 . | . . . . . . . Level 4 . | . . . . . . . Level 5 . | . . . . . . . High Security . | . . . . . . . Max Security . | . . . . . . . Peak Influence 251 | 5 143 251 97 . 30 127 Initial 97 | . . 7 97 . . 6 Average 45 | . 50 105 74 . 1 23 Influence Increases 1481 | 25 468 694 . . 40 254 Destroy 0b10 Robot/C 840 | . 300 360 . . 20 160 Destroy 0b10 Robot/NC 80 | 25 10 30 . . 10 5 Destroy Leader 248 | . 84 124 . . 10 30 Successful Hack 64 | . 24 30 . . . 10 Disable Machine 30 | . . 30 . . . . Destroy Structure 54 | . 5 . . . . 49 Partial Spotted 15 | . 15 . . . . . Lose Combat Pursuer 150 | . 30 120 . . . . Influence Decreases 1481 | 25 451 460 204 47 22 272 Entered New Map 223 | . . 10 154 47 . 12 Time Decay 976 | 25 431 340 50 . 22 108 Lost Part 282 | . 20 110 . . . 152 Squads Dispatched 13 | . 6 6 . . . 1 Investigation 9 | . 4 4 . . . 1 Extermination . | . . . . . . . Reinforcement 4 | . 2 2 . . . . Assault . | . . . . . . . Garrison . | . . . . . . . Intercept . | . . . . . . . Searches Triggered . | . . . . . . . Construction Impeded . | . . . . . . . Haulers Reinforced . | . . . . . . . Active Scanning Responses . | . . . . . . . Cargo Convoy Interrupts . | . . . . . . . Stealth | -11 -10 -9 -9 -9 -8 -8 --------- Run | Yrd Mat Mat Min Exi Min Mat Distress Signals 9 | . 4 5 . . . . Communications Jammed . | . . . . . . . Distress Signals . | . . . . . . . Times Spotted 77 | . 25 42 . . 1 9 Peak Tracking Total 7 | . 3 7 . . 1 5 Tactical Retreats 6 | . 1 5 . . . . Traps | -11 -10 -9 -9 -9 -8 -8 ------- Run | Yrd Mat Mat Min Exi Min Mat Traps Triggered 3 | . 3 . . . . . Indirectly . | . . . . . . . Trap Hack Attempts . | . . . . . . . Triggered . | . . . . . . . Disarmed . | . . . . . . . Reprogrammed . | . . . . . . . Reused . | . . . . . . . Traps Extracted . | . . . . . . . Installed . | . . . . . . . Triggered . | . . . . . . . Machines | -11 -10 -9 -9 -9 -8 -8 ---------- Run | Yrd Mat Mat Min Exi Min Mat Machines Disabled 3 | . . 3 . . . . Max in Single Turn 1 | . . 1 . . . . Machines Repaired . | . . . . . . . Machines Dismantled . | . . . . . . . Machines Sabotaged . | . . . . . . . Overloaded Fab Kills . | . . . . . . . Hacking | -11 -10 -9 -9 -9 -8 -8 --------- Run | Yrd Mat Mat Min Exi Min Mat Machines Accessed 21 | . 6 8 . 5 . 2 Terminals 14 | . 5 7 . . . 2 Fabricators . | . . . . . . . Repair Stations 2 | . 1 1 . . . . Recycling Units . | . . . . . . . Scanalyzers . | . . . . . . . Garrison Access . | . . . . . . . Total Hacks 99 | . 16 25 . 50 . 8 Successful 75 | . 12 11 . 50 . 2 Failed 24 | . 4 14 . . . 6 Catastrophic 1 | . . . . . . 1 Database Lockouts . | . . . . . . . Manual 38 | . 8 20 . 2 . 8 Terminals 44 | . 14 22 . . . 8 Fabricators . | . . . . . . . Repair Stations 5 | . 2 3 . . . . Recycling Units . | . . . . . . . Scanalyzers . | . . . . . . . Garrison Access . | . . . . . . . Terminal Hacks 60 | . 6 3 . 50 . 1 Record 49 | . . . . 49 . . Robot Analysis 1 | . 1 . . . . . Prototype ID Bank 1 | . . . . . . 1 Level Access Points 2 | . 1 1 . . . . Branch Access Points 1 | . . 1 . . . . Terminal Index 1 | . 1 . . . . . Registered Components 2 | . 1 1 . . . . Zone Layout 2 | . 2 . . . . . Proto ID Catalog 1 | . . . . 1 . . Fabricator Hacks . | . . . . . . . Repair Station Hacks 5 | . 2 3 . . . . Scan Component 3 | . 1 2 . . . . Repair 2 | . 1 1 . . . . Recycling Unit Hacks . | . . . . . . . Scanalyzer . | . . . . . . . Garrison Access Hacks . | . . . . . . . Unauthorized Hacks 10 | . 4 5 . . . 1 Terminals 10 | . 4 5 . . . 1 Botnet 10 | . 4 5 . . . 1 Fabricators . | . . . . . . . Repair Stations . | . . . . . . . Recycling Units . | . . . . . . . Scanalyzers . | . . . . . . . Garrison Access . | . . . . . . . Data Cores Recovered . | . . . . . . . Used . | . . . . . . . Hacking Detections 14 | . 5 7 . . . 2 Full Trace Events 11 | . 3 7 . . . 1 Feedback Events 1 | . 1 . . . . . Corruption 1 | . 1 . . . . . Feedback Blocked . | . . . . . . . Robot Schematics Acquired . | . . . . . . . Robots Built . | . . . . . . . Authchips . | . . . . . . . Time . | . . . . . . . Total Robot Build Rating . | . . . . . . . Part Schematics Acquired . | . . . . . . . Parts Built . | . . . . . . . Authchips . | . . . . . . . Time . | . . . . . . . Total Part Build Rating . | . . . . . . . Parts Repaired 2 | . 1 1 . . . . Time 64 | . 38 26 . . . . Parts Recycled . | . . . . . . . Recycled Matter . | . . . . . . . Retrieved Matter . | . . . . . . . Retrieved Components . | . . . . . . . Parts Scanalyzed . | . . . . . . . Part Schematics Acquired . | . . . . . . . Parts Damaged . | . . . . . . . Bothacking | -11 -10 -9 -9 -9 -8 -8 ------------ Run | Yrd Mat Mat Min Exi Min Mat Used RIF Installer . | . . . . . . . Robots Hacked . | . . . . . . . Non-combat . | . . . . . . . Combat . | . . . . . . . Robot Hacks Applied . | . . . . . . . Relay Couplers Released . | . . . . . . . Fabnet Peak Effective % . | . . . . . . . Robots Rewired . | . . . . . . . Allies Hacked . | . . . . . . . Hacks Repelled . | . . . . . . . Allies | -11 -10 -9 -9 -9 -8 -8 -------- Run | Yrd Mat Mat Min Exi Min Mat Total Allies . | . . . . . . . Largest Group . | . . . . . . . Highest-Rated Group . | . . . . . . . Highest-Rated Ally . | . . . . . . . Total Orders . | . . . . . . . Ally Attacks . | . . . . . . . Total Damage . | . . . . . . . Kills . | . . . . . . . Allies Corrupted . | . . . . . . . Allies Melted . | . . . . . . . Intel | -11 -10 -9 -9 -9 -8 -8 ------- Run | Yrd Mat Mat Min Exi Min Mat Active Infowar (turns) 4472 | 20 1224 749 106 1062 804 507 Terrain 1804 | . 1055 749 . . . . Structural 91 | . . . . . . 91 Seismic 2550 | 20 169 . 106 1062 804 389 ECM 27 | . . . . . . 27 Robot Analysis Total 1 | . 1 . . . . . Derelict Logs Recovered . | . . . . . . . Drone Launches . | . . . . . . . Drone Recoveries . | . . . . . . . Exploration | -11 -10 -9 -9 -9 -8 -8 ------------- Run | Yrd Mat Mat Min Exi Min Mat Turns Passed 4992 | 256 1271 859 106 1062 804 634 Spaces Moved 2439 | 141 606 357 65 664 327 279 Core 28 | 22 . . . . . 6 Treads 2362 | 119 606 357 65 664 327 224 Legs 49 | . . . . . . 49 Wheels . | . . . . . . . Hover . | . . . . . . . Flight . | . . . . . . . Fastest Speed 50 | 50 160 160 160 160 160 120 Average Speed 160 | 143 160 160 160 160 160 169 Slowest Speed 550 | 160 160 240 160 160 160 550 Overloaded Moves . | . . . . . . . Propulsion Burnouts . | . . . . . . . Robots Hopped . | . . . . . . . Potential Cave-ins . | . . . . . . . Cave-ins Triggered 1 | . . . . . . 1 Exploration Rate (%) 46 | 6 84 43 19 94 62 16 Regions Visited 6 Branch Regions 3 Pre-discovered Areas 1 | . . . . 1 . . Known Exits Taken 3 | . 1 1 . . 1 . Unknown Exits Taken 3 | 1 . . 1 1 . . Scrap Searched . | . . . . . . . Spaces Dug 5 | . 5 . . . . . Terrain Destroyed 65 | . 5 . . . . 60 Melee . | . . . . . . . Projectile 5 | . 5 . . . . . AOE 60 | . . . . . . 60 Terrain Rammed . | . . . . . . . Walls Destroyed . | . . . . . . . Machines Disabled . | . . . . . . . Actions | -11 -10 -9 -9 -9 -8 -8 --------- Run | Yrd Mat Mat Min Exi Min Mat Total 3197 | 173 785 513 67 664 599 396 Wait 414 | . 59 40 . . 256 59 Move 2433 | 140 605 356 64 663 326 279 Hop . | . . . . . . . Pick Up 63 | 13 22 13 . 1 3 11 Fast Attach 4 | 2 1 1 . . . . Attach 36 | 5 2 12 3 . 2 12 Detach . | . . . . . . . Swap 14 | . 10 3 . . . 1 Drop 30 | . 19 8 . . 2 1 Fire 200 | 11 66 80 . . 10 33 Melee . | . . . . . . . Ram . | . . . . . . . Kick . | . . . . . . . Crush 3 | 2 1 . . . . . Escape Stasis . | . . . . . . . Rewire . | . . . . . . . Trap . | . . . . . . . Miscellaneous . | . . . . . . . Route ------- -11/Scrapyard -10/Materials (discovered 6 exits: *Mat x3 / [*Min x2] / [*Sub]) -9/Materials (discovered 5 exits: Mat x3 / *Min x2) -9/Mines -9/Exiles (discovered 2 exits: [*Min x2]) -8/Mines -8/Materials History --------- Turn | Location | Event 19 | -11/Scrapyard | Discovered new exit (range 16) 257 | -11/Scrapyard | Entered Materials 309 | -10/Materials | Discovered new exit (range 15) 310 | -10/Materials | Identified exit to Materials 315 | -10/Materials | Build established: Mutant 757 | -10/Materials | Discovered new exit (range 14) 766 | -10/Materials | Repaired Imp. Terrain Scanner 1509 | -10/Materials | Discovered new exit (range 8) 1528 | -10/Materials | Entered another Materials area 1528 | -9/Materials | Evolved 2 slots: Propulsion x2 1569 | -9/Materials | Discovered new exit (range 13) 1630 | -9/Materials | Identified exit to Materials 1912 | -9/Materials | Repaired Lgt. Treads 2157 | -9/Materials | Discovered new exit (range 10) 2275 | -9/Materials | Identified exit to Mines 2302 | -9/Materials | Core integrity fell below 50% 2330 | -9/Materials | Lost 8 parts (1p4n1u2w) 2387 | -9/Materials | Entered Mines 2485 | -9/Mines | Deemed a non-threat by the Exiles lab entrance 2486 | -9/Mines | Discovered new exit (range 5) 2493 | -9/Mines | Entered Exiles 2524 | -9/Exiles | Discovered new exit (range 14) 2578 | -9/Exiles | Met 8R-AWN 2604 | -9/Exiles | Met EX-HEX 2665 | -9/Exiles | Met EX-DEC 2721 | -9/Exiles | Learned location of Zion (-6) 2793 | -9/Exiles | Discovered new exit (range 14) 2909 | -9/Exiles | Visited The Gauntlet 3207 | -9/Exiles | Met EX-BIN 3237 | -9/Exiles | Aligned with FarCom system 3239 | -9/Exiles | Given EX-Vault access code 3380 | -9/Exiles | Opened EX-Vault 3394 | -9/Exiles | Found Army-in-a-Box 3424 | -9/Exiles | Warned to stay clear of 0b10 Research branches 3555 | -9/Exiles | Left Exiles lab with Army-in-a-Box 3555 | -9/Exiles | Entered Mines 4296 | -8/Mines | Discovered exit to Materials (range 10) 4359 | -8/Mines | Entered Materials 4359 | -8/Materials | Evolved 2 slots: Utility x2 4647 | -8/Materials | Build established: Scavenger-Mutant 4782 | -8/Materials | Crushed by falling debris 4813 | -8/Materials | Lost 8 parts (1p3n3u1w) 4950 | -8/Materials | Core integrity fell below 50% 4993 | -8/Materials | Self-destructed Last Messages --------------- 04914_ U-05 Engineer lays Concrete. 04924_ System corrupted: Substantial component data lost. 04949_ K-01 Serf destroyed. 04949_ K-01 Serf collects debris. 04956_ Extracted 49 matter. 04956_ K-01 Serf destroyed. 04959_ System corrupted: Beam Cannon fused. 04960_ Aluminum Leg destroyed. 04963_ Hrd. Light Armor Plating destroyed. 04969_ R-06 Scavenger collects Wheel. 04970_ Particle Gun destroyed. 04972_ R-06 Scavenger collects Lgt. Ion Engine. 04975_ Carbon-fiber Leg destroyed. 04976_ R-06 Scavenger collects Sml. Matter Pod. 04979_ G-47 Trooper destroyed. 04979_ Aluminum Leg destroyed. 04980_ Lgt. Nuclear Core destroyed. 04983_ Aluminum Leg destroyed. 04987_ Beam Cannon destroyed. Map ----- +----------------------------------------------------+ | ?????????????????????????????????????????????????? | | ?????????????????????????????????????????????????? | | ?????????????????????????????????????????????????? | | ?????????????????????????????????????????????????? | | ?????????????????????????????????????????????????? | | ?????????????????????????????????????????????????? | | ?????????????????????????????????????????????????? | | ?????????????????????????????????????????????????? | | ?????????????????????????????????????????????????? | | ?????????????????????????????????????????????????? | | ?????????????????????????????????????????????????? | | ?????????????????????????????????????????????????? | | ?????????????????????????????????????????????????? | | ?????????????????????g???????????????????????????? | | ?????????????????????????????????????????????????? | | ?????????????????????????????????????????????????? | | ?????????????????????????????????????????????????? | | ?????????????????????????????????????????????????? | | ?????????????????? + ????????????????????????????? | | ?????????????????? # ????????????????????????????? | | ?????????????????? # ????????????????????????????? | | ?????????????????? # ???######## ??????????????## | | ???????????###/##### ########## ????????????### | | ???????????### ##### #### # ????????????# | | ???????????## g !* # ????????????# | | ???????????## =% @ " # ????????????# | | ????????? g = # ???????????## | | ???????????##########+##### # ###?????# # | | ???????????####### T ## #########?????## | | ????????????????????????? ## # ######## #[ | | ??????????????????????????## # ############ | | ????????????######????????## + + | | ????????????# #????????## # ########## | | ????????????# #????????## # ########### | | ????????????# #????????## # ##??????## | | ????# ####### #????????##########+###??????###+ | | ^ + #????????########## ###??????### | | ????####### # #?????????????????# #??????????# | | ??????????# # ! #??????????????#### ########????? | | ??????????#?# #######????????# !!#????? | | ??????????# # # ########## = !#????? | | ??????????# ##+### ]#????? | | ??????????# " ]]#????? | | ??????????######## !#????? | | ?????????????????# ########## !!#????? | | ?????????????????#######????????# #####????? | | ????????????????????????????????#########????????? | | | | | | | +----------------------------------------------------+ Best States ------------- Heat Dissipation 31 Energy Generation 14 Energy Capacity 250 Matter Stores 300 Matter Capacity 300 Sight Range 16 Terrain Scan Range 16 Terrain Scan Density 10 ECM Strength 1 Armor Coverage 300 Evasion (%) 55 Recoil Reduction 4 Item Schematics ----------------- None Robot Schematics ------------------ None Fabricated ------------ Nothing Repaired ---------- Imp. Terrain Scanner | 27% | -10/Materials Lgt. Treads | 27% | -9/Materials Alien Tech Used ----------------- None Achievements -------------- None Challenges ------------ None Game ------ Seed ElectrostormMetaBooster Manual? 0 Play Time 00:41:24 Cumulative 31.4 hours Start 2025.07.22 @ 13:54:11 End 2025.07.22 @ 16:45:48 Sessions 5 Manual Loads 0 Difficulty Rogue Special Mode None Game No. 80 Rogue 80 Adventurer 0 Explorer 0 Win Type - Total 0 Types 0/0/0/0/0/0/0/0/0/0 Lore% 32 Gallery% 32 Achievement% 25 Wizard Run 0 Options --------- Layout 1 ASCII 0 Keyboard 0 Movement Mouse Keybinds 0 Fullscreen 1 Font 24/Smallcaps Map View 50x35 Zoom Use 0% Tactical HUD 1 Map Filters NONE Filters NONE Steam 1 RUN: 25f1e3da-7bb3-4306-8196-ff0b6dc26242